[Event "*** Titled Tuesday Blitz"]
[Site "Chess.com"]
[Date "2021.04.27"]
[Round "7"]
[White "Lion-Al-Messi"]
[Black "Margency"]
[Result "1/2-1/2"]
[WhiteElo "2499"]
[BlackElo "2658"]
[TimeControl "180+1"]
[EndTime "11:19:42 PDT"]
[Termination "Game drawn by repetition"]

1. e4 {[%clk 0:02:31.5]} 1... c5 {[%clk 0:02:59.2]} 2. Nf3 {[%clk 0:02:31.8]}
2... d6 {[%clk 0:02:59.1]} 3. d4 {[%clk 0:02:32.4]} 3... cxd4 {[%clk 0:02:58.9]}
4. Nxd4 {[%clk 0:02:33.3]} 4... Nf6 {[%clk 0:02:58.7]} 5. Nc3 {[%clk 0:02:33.9]}
5... a6 {[%clk 0:02:58.3]} 6. h3 {[%clk 0:02:34.3]} 6... e6 {[%clk 0:02:57.2]}
7. g4 {[%clk 0:02:34.4]} 7... b5 {[%clk 0:02:56.1]} 8. Bg2 {[%clk 0:02:26.9]}
8... Bb7 {[%clk 0:02:55.3]} 9. g5 {[%clk 0:02:13.5]} 9... Nfd7 {[%clk
0:02:54.7]} 10. Qh5 {[%clk 0:02:13.6]} 10... g6 {[%clk 0:02:48.4]} 11. Qe2
{[%clk 0:02:13.5]} 11... b4 {[%clk 0:02:38.4]} 12. Na4 {[%clk 0:02:01.4]} 12...
Bg7 {[%clk 0:02:37.4]} 13. Be3 {[%clk 0:02:00.4]} 13... O-O {[%clk 0:02:27.2]}
14. Rd1 {[%clk 0:01:54]} 14... Qa5 {[%clk 0:02:10.4]} 15. b3 {[%clk 0:01:50.9]}
15... d5 {[%clk 0:02:10.3]} 16. exd5 {[%clk 0:01:48.6]} 16... Bxd5 {[%clk
0:02:09.5]} 17. Bxd5 {[%clk 0:01:41.9]} 17... Qxd5 {[%clk 0:02:07.8]} 18. Qf3
{[%clk 0:01:40.2]} 18... Qxf3 {[%clk 0:01:52.1]} 19. Nxf3 {[%clk 0:01:41.1]}
19... Rc8 {[%clk 0:01:52.1]} 20. Rd2 {[%clk 0:01:10.6]} 20... Rc6 {[%clk
0:01:30.9]} 21. O-O {[%clk 0:01:09.3]} 21... a5 {[%clk 0:01:22.1]} 22. Rfd1
{[%clk 0:01:09.2]} 22... Nf8 {[%clk 0:00:46]} 23. Rd8 {[%clk 0:01:08.7]} 23...
Rca6 {[%clk 0:00:42.8]} 24. Nb6 {[%clk 0:01:04.3]} 24... a4 {[%clk 0:00:29]} 25.
Nxa8 {[%clk 0:01:01.1]} 25... Rxa8 {[%clk 0:00:29.9]} 26. Bc5 {[%clk 0:01:00.4]}
26... axb3 {[%clk 0:00:28.3]} 27. axb3 {[%clk 0:01:01.3]} 27... Na6 {[%clk
0:00:28.2]} 28. Rxa8 {[%clk 0:01:00.1]} 28... Nxc5 {[%clk 0:00:28.6]} 29. Rdd8
{[%clk 0:00:58.2]} 29... h6 {[%clk 0:00:28.1]} 30. h4 {[%clk 0:00:57.1]} 30...
hxg5 {[%clk 0:00:27.3]} 31. hxg5 {[%clk 0:00:58]} 31... Ne4 {[%clk 0:00:27]} 32.
Kg2 {[%clk 0:00:54.3]} 32... Nc5 {[%clk 0:00:24.5]} 33. Rac8 {[%clk 0:00:44.6]}
33... Ne4 {[%clk 0:00:24.2]} 34. Rc4 {[%clk 0:00:44.5]} 34... f5 {[%clk
0:00:16.7]} 35. gxf6 {[%clk 0:00:40.1]} 35... Nxf6 {[%clk 0:00:15.8]} 36. Rxb4
{[%clk 0:00:40.2]} 36... Nd5 {[%clk 0:00:16.3]} 37. Rbb8 {[%clk 0:00:39.2]}
37... Kf7 {[%clk 0:00:16.3]} 38. Rb7+ {[%clk 0:00:38.4]} 38... Kg8 {[%clk
0:00:16.7]} 39. Rbb8 {[%clk 0:00:37.1]} 39... Kf7 {[%clk 0:00:16.4]} 40. Ng5+
{[%clk 0:00:37.4]} 40... Kf6 {[%clk 0:00:15]} 41. Rxf8+ {[%clk 0:00:33.4]} 41...
Kxg5 {[%clk 0:00:15.3]} 42. Rg8 {[%clk 0:00:32.2]} 42... Be5 {[%clk 0:00:15.3]}
43. Rb5 {[%clk 0:00:30.8]} 43... Kf5 {[%clk 0:00:12.2]} 44. Rf8+ {[%clk
0:00:29.8]} 44... Ke4 {[%clk 0:00:12.7]} 45. f3+ {[%clk 0:00:25.8]} 45... Ke3
{[%clk 0:00:10.6]} 46. c4 {[%clk 0:00:23.7]} 46... Nf4+ {[%clk 0:00:10.3]} 47.
Kf1 {[%clk 0:00:22.3]} 47... Bd6 {[%clk 0:00:09.2]} 48. Rb6 {[%clk 0:00:21.9]}
48... Bxf8 {[%clk 0:00:08.8]} 49. Rb8 {[%clk 0:00:20.1]} 49... Bd6 {[%clk
0:00:07.9]} 50. Rd8 {[%clk 0:00:20]} 50... Bc5 {[%clk 0:00:07.3]} 51. Rc8 {[%clk
0:00:19.4]} 51... Nd3 {[%clk 0:00:07]} 52. Rg8 {[%clk 0:00:16]} 52... Kxf3
{[%clk 0:00:06.5]} 53. Rxg6 {[%clk 0:00:15.6]} 53... e5 {[%clk 0:00:07.1]} 54.
Rf6+ {[%clk 0:00:15.1]} 54... Ke3 {[%clk 0:00:06.8]} 55. Rh6 {[%clk 0:00:10]}
55... e4 {[%clk 0:00:06.8]} 56. Rh2 {[%clk 0:00:10.1]} 56... Kd4 {[%clk
0:00:06.6]} 57. Ke2 {[%clk 0:00:10]} 57... Nf4+ {[%clk 0:00:06.3]} 58. Kf2
{[%clk 0:00:03.8]} 58... Kd3+ {[%clk 0:00:06.1]} 59. Kg3 {[%clk 0:00:04.1]}
59... Ne2+ {[%clk 0:00:06]} 60. Kg4 {[%clk 0:00:03.9]} 60... Nd4 {[%clk
0:00:06.2]} 61. Rh3+ {[%clk 0:00:02.2]} 61... e3 {[%clk 0:00:06.6]} 62. Kf4
{[%clk 0:00:02.4]} 62... Bd6+ {[%clk 0:00:06.1]} 63. Kg4 {[%clk 0:00:02]} 63...
Kd2 {[%clk 0:00:06.1]} 64. Rxe3 {[%clk 0:00:02]} 64... Kxe3 {[%clk 0:00:06.4]}
65. Kg5 {[%clk 0:00:02.4]} 65... Nxb3 {[%clk 0:00:06.5]} 66. Kf6 {[%clk
0:00:02.6]} 66... Kd4 {[%clk 0:00:07.1]} 67. Ke6 {[%clk 0:00:03.5]} 67... Bc5
{[%clk 0:00:07.8]} 68. Kd7 {[%clk 0:00:03.9]} 68... Kxc4 {[%clk 0:00:08.7]} 69.
Ke6 {[%clk 0:00:04.8]} 69... Nd4+ {[%clk 0:00:08.4]} 70. Kf7 {[%clk 0:00:05.7]}
70... Kd5 {[%clk 0:00:08.7]} 71. Kg6 {[%clk 0:00:06.6]} 71... Ke5 {[%clk
0:00:08.3]} 72. Kh7 {[%clk 0:00:07.5]} 72... Be7 {[%clk 0:00:08.4]} 73. Kg6
{[%clk 0:00:08.4]} 73... Nf5 {[%clk 0:00:07.8]} 74. Kh5 {[%clk 0:00:09.3]} 74...
Kf6 {[%clk 0:00:06.5]} 75. Kg4 {[%clk 0:00:10.2]} 75... Bc5 {[%clk 0:00:06.5]}
76. Kf3 {[%clk 0:00:11.1]} 76... Ke5 {[%clk 0:00:06.8]} 77. Ke2 {[%clk
0:00:11.3]} 77... Ke4 {[%clk 0:00:07.1]} 78. Kf1 {[%clk 0:00:12.2]} 78... Kf3
{[%clk 0:00:04.6]} 79. Ke1 {[%clk 0:00:12.5]} 79... Be3 {[%clk 0:00:04]} 80. Kf1
{[%clk 0:00:13.4]} 80... Nd4 {[%clk 0:00:04.5]} 81. Ke1 {[%clk 0:00:14.3]} 81...
Nc2+ {[%clk 0:00:02.4]} 82. Kf1 {[%clk 0:00:15.2]} 82... Nd4 {[%clk 0:00:03.3]}
83. Ke1 {[%clk 0:00:15.7]} 83... Bf4 {[%clk 0:00:03.6]} 84. Kf1 {[%clk
0:00:16.6]} 84... Ke3 {[%clk 0:00:03.8]} 85. Ke1 {[%clk 0:00:17.5]} 85... Bg3+
{[%clk 0:00:03.8]} 86. Kf1 {[%clk 0:00:18.4]} 86... Kf3 {[%clk 0:00:03.9]} 87.
Kg1 {[%clk 0:00:18.8]} 87... Ne2+ {[%clk 0:00:04.3]} 88. Kh1 {[%clk 0:00:19.4]}
88... Nf4 {[%clk 0:00:04.7]} 89. Kg1 {[%clk 0:00:19.7]} 89... Bf2+ {[%clk
0:00:04.9]} 90. Kf1 {[%clk 0:00:20.6]} 90... Bg3 {[%clk 0:00:05.6]} 91. Kg1
{[%clk 0:00:21]} 91... Nh3+ {[%clk 0:00:05.8]} 92. Kh1 {[%clk 0:00:21.9]} 92...
Nf2+ {[%clk 0:00:05.8]} 93. Kg1 {[%clk 0:00:22.5]} 93... Ng4 {[%clk 0:00:05.7]}
94. Kf1 {[%clk 0:00:23.4]} 94... Nh2+ {[%clk 0:00:05.4]} 95. Kg1 {[%clk
0:00:23.9]} 95... Ng4 {[%clk 0:00:05.9]} 96. Kf1 {[%clk 0:00:24.1]} 96... Nf2
{[%clk 0:00:06]} 97. Kg1 {[%clk 0:00:24.2]} 97... Ne4 {[%clk 0:00:06.2]} 98. Kf1
{[%clk 0:00:24.3]} 98... Bh2 {[%clk 0:00:06.6]} 99. Ke1 {[%clk 0:00:24.3]} 99...
Ke3 {[%clk 0:00:06]} 100. Kf1 {[%clk 0:00:24.4]} 100... Kf3 {[%clk 0:00:05.1]}
101. Ke1 {[%clk 0:00:24.8]} 101... Bf4 {[%clk 0:00:04.4]} 102. Kf1 {[%clk
0:00:24.9]} 102... Nd2+ {[%clk 0:00:04.7]} 103. Kg1 {[%clk 0:00:25.1]} 103...
Bg3 {[%clk 0:00:04.2]} 104. Kh1 {[%clk 0:00:25.1]} 104... Ne4 {[%clk 0:00:04.1]}
105. Kg1 {[%clk 0:00:25.4]} 105... Nf2 {[%clk 0:00:03.9]} 106. Kf1 {[%clk
0:00:25.6]} 106... Bh2 {[%clk 0:00:04.8]} 107. Ke1 {[%clk 0:00:25.8]} 107... Ne4
{[%clk 0:00:03.5]} 108. Kf1 {[%clk 0:00:25.8]} 108... Nd2+ {[%clk 0:00:02.9]}
109. Ke1 {[%clk 0:00:26.2]} 109... Ke3 {[%clk 0:00:03.8]} 110. Kd1 {[%clk
0:00:26.7]} 110... Kd3 {[%clk 0:00:03.8]} 111. Ke1 {[%clk 0:00:27.2]} 111...
Bg3+ {[%clk 0:00:04.5]} 112. Kd1 {[%clk 0:00:27.6]} 112... Nc4 {[%clk
0:00:04.3]} 113. Kc1 {[%clk 0:00:28.1]} 113... Kc3 {[%clk 0:00:03.4]} 114. Kd1
{[%clk 0:00:28.5]} 114... Kd3 {[%clk 0:00:03.5]} 115. Kc1 {[%clk 0:00:29]}
115... Bf4+ {[%clk 0:00:03.6]} 116. Kd1 {[%clk 0:00:28.7]} 116... Bg3 {[%clk
0:00:02.9]} 1/2-1/2

[Event "*** Titled Tuesday Blitz"]
[Site "Chess.com"]
[Date "2021.04.27"]
[Round "8"]
[White "niki_2003"]
[Black "catzapto"]
[Result "0-1"]
[WhiteElo "2017"]
[BlackElo "2100"]
[TimeControl "180+1"]
[EndTime "11:22:08 PDT"]
[Termination "catzapto won by checkmate"]

1. e4 {[%clk 0:03:00.9]} 1... c5 {[%clk 0:03:00.2]} 2. Nf3 {[%clk 0:02:59.4]}
2... d6 {[%clk 0:03:00.5]} 3. d4 {[%clk 0:02:59]} 3... cxd4 {[%clk 0:03:01.4]}
4. Nxd4 {[%clk 0:02:58.2]} 4... Nf6 {[%clk 0:03:02.3]} 5. Nc3 {[%clk 0:02:57.1]}
5... Nc6 {[%clk 0:03:02.4]} 6. Be3 {[%clk 0:02:55]} 6... a6 {[%clk 0:03:02.2]}
7. f3 {[%clk 0:02:54.2]} 7... Nxd4 {[%clk 0:03:00.2]} 8. Bxd4 {[%clk 0:02:53]}
8... Be6 {[%clk 0:03:01.1]} 9. Bd3 {[%clk 0:02:51.1]} 9... Rc8 {[%clk
0:03:00.5]} 10. O-O {[%clk 0:02:48.7]} 10... g6 {[%clk 0:03:00.2]} 11. f4 {[%clk
0:02:49.2]} 11... Bg7 {[%clk 0:03:00.3]} 12. f5 {[%clk 0:02:49.7]} 12... Bc4
{[%clk 0:02:58.9]} 13. fxg6 {[%clk 0:02:47]} 13... hxg6 {[%clk 0:02:57]} 14.
Bxc4 {[%clk 0:02:31.6]} 14... Rxc4 {[%clk 0:02:55.8]} 15. Bxf6 {[%clk
0:02:31.3]} 15... Bxf6 {[%clk 0:02:53.2]} 16. Nd5 {[%clk 0:02:30.9]} 16... Bxb2
{[%clk 0:02:42]} 17. Rb1 {[%clk 0:02:27.8]} 17... Bd4+ {[%clk 0:02:42.2]} 18.
Kh1 {[%clk 0:02:25.1]} 18... e6 {[%clk 0:02:42.5]} 19. Rxb7 {[%clk 0:02:16.6]}
19... Rxh2+ {[%clk 0:02:36.4]} 20. Kxh2 {[%clk 0:02:11]} 20... Qh4# {[%clk
0:02:37.3]} 0-1

[Event "*** Titled Tuesday Blitz"]
[Site "Chess.com"]
[Date "2021.04.27"]
[Round "8"]
[White "elextranjero00"]
[Black "miragha_yev"]
[Result "1-0"]
[WhiteElo "2617"]
[BlackElo "2737"]
[TimeControl "180+1"]
[EndTime "11:22:54 PDT"]
[Termination "elextranjero00 won by resignation"]

1. e4 {[%clk 0:03:00.9]} 1... e5 {[%clk 0:02:59.5]} 2. Nf3 {[%clk 0:03:00.8]}
2... Nc6 {[%clk 0:03:00.1]} 3. Bc4 {[%clk 0:03:01.2]} 3... Nf6 {[%clk
0:03:00.2]} 4. d3 {[%clk 0:03:01]} 4... Bc5 {[%clk 0:02:59.9]} 5. c3 {[%clk
0:02:58.2]} 5... h6 {[%clk 0:02:59.8]} 6. a4 {[%clk 0:02:56]} 6... a6 {[%clk
0:02:58.7]} 7. O-O {[%clk 0:02:53.9]} 7... d6 {[%clk 0:02:58.1]} 8. Nbd2 {[%clk
0:02:50.7]} 8... Ba7 {[%clk 0:02:58]} 9. b4 {[%clk 0:02:46.4]} 9... O-O {[%clk
0:02:57.3]} 10. h3 {[%clk 0:02:39.4]} 10... Re8 {[%clk 0:02:55.4]} 11. Re1
{[%clk 0:02:37.9]} 11... Be6 {[%clk 0:02:53.7]} 12. Bxe6 {[%clk 0:02:36.7]}
12... Rxe6 {[%clk 0:02:54.6]} 13. Qc2 {[%clk 0:02:37.2]} 13... Qd7 {[%clk
0:02:54.3]} 14. Nf1 {[%clk 0:02:33.2]} 14... d5 {[%clk 0:02:53.6]} 15. Be3
{[%clk 0:02:31.9]} 15... Bxe3 {[%clk 0:02:53]} 16. Nxe3 {[%clk 0:02:32]} 16...
Rd8 {[%clk 0:02:53.4]} 17. b5 {[%clk 0:02:26.9]} 17... axb5 {[%clk 0:02:51.1]}
18. axb5 {[%clk 0:02:27.8]} 18... Ne7 {[%clk 0:02:51.7]} 19. c4 {[%clk
0:02:28.5]} 19... dxe4 {[%clk 0:02:46.7]} 20. dxe4 {[%clk 0:02:28.4]} 20... c6
{[%clk 0:02:37.5]} 21. b6 {[%clk 0:02:11.3]} 21... Qd3 {[%clk 0:02:28.9]} 22.
Rad1 {[%clk 0:02:06.1]} 22... Qxc2 {[%clk 0:02:01.3]} 23. Rxd8+ {[%clk
0:02:05.7]} 23... Kh7 {[%clk 0:02:01.5]} 24. Nxc2 {[%clk 0:02:06.3]} 1-0

[Event "*** Titled Tuesday Blitz"]
[Site "Chess.com"]
[Date "2021.04.27"]
[Round "8"]
[White "Novoselski"]
[Black "Kapibara_Warri0r"]
[Result "0-1"]
[WhiteElo "2391"]
[BlackElo "2241"]
[TimeControl "180+1"]
[EndTime "11:23:09 PDT"]
[Termination "Kapibara_Warri0r won by resignation"]

1. e4 {[%clk 0:03:00.9]} 1... e5 {[%clk 0:02:59.2]} 2. Nf3 {[%clk 0:03:00]} 2...
Nc6 {[%clk 0:02:59.8]} 3. Bb5 {[%clk 0:02:58.3]} 3... a6 {[%clk 0:02:59.5]} 4.
Ba4 {[%clk 0:02:57.5]} 4... Nf6 {[%clk 0:03:00.1]} 5. O-O {[%clk 0:02:55.8]}
5... Be7 {[%clk 0:03:00.6]} 6. Bxc6 {[%clk 0:02:54.7]} 6... dxc6 {[%clk
0:02:57.7]} 7. d3 {[%clk 0:02:55.6]} 7... Qd6 {[%clk 0:02:50.1]} 8. Nbd2 {[%clk
0:02:54.4]} 8... Be6 {[%clk 0:02:50]} 9. b3 {[%clk 0:02:53.1]} 9... O-O-O {[%clk
0:02:37.5]} 10. a4 {[%clk 0:02:49]} 10... Bg4 {[%clk 0:02:23.7]} 11. h3 {[%clk
0:02:44.1]} 11... Bh5 {[%clk 0:02:19.9]} 12. Nc4 {[%clk 0:02:40.7]} 12... Qe6
{[%clk 0:02:18.6]} 13. Ba3 {[%clk 0:02:18.5]} 13... Bxa3 {[%clk 0:02:17.4]} 14.
Rxa3 {[%clk 0:02:16.9]} 14... Nxe4 {[%clk 0:02:11.4]} 15. g4 {[%clk 0:02:05.2]}
15... Bxg4 {[%clk 0:02:08]} 16. hxg4 {[%clk 0:02:04.3]} 16... Qxg4+ {[%clk
0:02:07.8]} 17. Kh1 {[%clk 0:02:04.4]} 17... Nc3 {[%clk 0:01:56.7]} 18. Qe1
{[%clk 0:01:50.2]} 18... Qxf3+ {[%clk 0:01:56.5]} 19. Kg1 {[%clk 0:01:49.8]}
19... Ne2+ {[%clk 0:01:51.9]} 0-1

[Event "*** Titled Tuesday Blitz"]
[Site "Chess.com"]
[Date "2021.04.27"]
[Round "8"]
[White "WonderChampion"]
[Black "Mrlammy"]
[Result "0-1"]
[WhiteElo "2095"]
[BlackElo "2258"]
[TimeControl "180+1"]
[EndTime "11:23:30 PDT"]
[Termination "Mrlammy won by resignation"]

1. d4 {[%clk 0:03:00.9]} 1... Nf6 {[%clk 0:02:56.3]} 2. Bg5 {[%clk 0:02:57]}
2... d5 {[%clk 0:02:54.7]} 3. Nd2 {[%clk 0:02:46.2]} 3... Nc6 {[%clk 0:02:50.2]}
4. Ngf3 {[%clk 0:02:39.9]} 4... g6 {[%clk 0:02:47.9]} 5. Bxf6 {[%clk 0:02:31.7]}
5... exf6 {[%clk 0:02:48.8]} 6. e3 {[%clk 0:02:22.8]} 6... Bg7 {[%clk
0:02:47.3]} 7. c4 {[%clk 0:02:21.8]} 7... dxc4 {[%clk 0:02:47]} 8. Bxc4 {[%clk
0:02:22.7]} 8... O-O {[%clk 0:02:46.9]} 9. O-O {[%clk 0:02:21.1]} 9... a6 {[%clk
0:02:44.4]} 10. b3 {[%clk 0:02:13.8]} 10... b5 {[%clk 0:02:37.3]} 11. Bd3 {[%clk
0:02:07.5]} 11... Bb7 {[%clk 0:02:34.1]} 12. Rc1 {[%clk 0:02:03.8]} 12... Nb4
{[%clk 0:02:25.6]} 13. Bb1 {[%clk 0:02:02.1]} 13... Nd5 {[%clk 0:02:22]} 14. Re1
{[%clk 0:01:58.6]} 14... Re8 {[%clk 0:02:19.5]} 15. Nf1 {[%clk 0:01:52.9]} 15...
b4 {[%clk 0:02:16.6]} 16. Ng3 {[%clk 0:01:47.1]} 16... Nc3 {[%clk 0:02:14.1]}
17. e4 {[%clk 0:01:36.4]} 17... Nxd1 {[%clk 0:02:08.3]} 18. Rcxd1 {[%clk
0:01:24.2]} 18... Qe7 {[%clk 0:02:04.2]} 19. d5 {[%clk 0:01:23.6]} 19... Rad8
{[%clk 0:02:01.7]} 0-1

[Event "*** Titled Tuesday Blitz"]
[Site "Chess.com"]
[Date "2021.04.27"]
[Round "8"]
[White "Matensien"]
[Black "grandcoach"]
[Result "1-0"]
[WhiteElo "2346"]
[BlackElo "2235"]
[TimeControl "180+1"]
[EndTime "11:23:33 PDT"]
[Termination "Matensien won by resignation"]

1. c4 {[%clk 0:03:00.9]} 1... Nf6 {[%clk 0:02:58.9]} 2. Nf3 {[%clk 0:03:00.8]}
2... e6 {[%clk 0:02:59.2]} 3. g3 {[%clk 0:02:59.1]} 3... d5 {[%clk 0:02:59.5]}
4. Bg2 {[%clk 0:02:59.7]} 4... Be7 {[%clk 0:02:58.7]} 5. O-O {[%clk 0:03:00.1]}
5... O-O {[%clk 0:02:59.2]} 6. b3 {[%clk 0:03:00.6]} 6... b6 {[%clk 0:02:58]} 7.
Bb2 {[%clk 0:03:00.9]} 7... Bb7 {[%clk 0:02:58.5]} 8. cxd5 {[%clk 0:02:59.3]}
8... exd5 {[%clk 0:02:53.2]} 9. d4 {[%clk 0:02:59]} 9... c5 {[%clk 0:02:52.7]}
10. Nc3 {[%clk 0:02:59.3]} 10... Nc6 {[%clk 0:02:50.3]} 11. Rc1 {[%clk
0:02:56.2]} 11... Rc8 {[%clk 0:02:46.1]} 12. Qd3 {[%clk 0:02:55.4]} 12... c4
{[%clk 0:02:43]} 13. Qb1 {[%clk 0:02:37]} 13... a6 {[%clk 0:02:35.8]} 14. Rfd1
{[%clk 0:02:34.2]} 14... b5 {[%clk 0:02:35.8]} 15. bxc4 {[%clk 0:02:25.4]} 15...
dxc4 {[%clk 0:02:29]} 16. Ne5 {[%clk 0:02:24.1]} 16... Na5 {[%clk 0:02:22.2]}
17. Bxb7 {[%clk 0:02:13]} 17... Nxb7 {[%clk 0:02:23.1]} 18. a3 {[%clk
0:02:04.7]} 18... Nd5 {[%clk 0:02:17.6]} 19. Nxd5 {[%clk 0:01:58.2]} 19... Qxd5
{[%clk 0:02:18.5]} 20. e4 {[%clk 0:01:58.6]} 20... Qd8 {[%clk 0:02:05]} 21. d5
{[%clk 0:01:55.9]} 21... Nd6 {[%clk 0:02:03.8]} 22. Nc6 {[%clk 0:01:54.2]} 22...
Qd7 {[%clk 0:02:03.4]} 23. e5 {[%clk 0:01:50.1]} 23... Nf5 {[%clk 0:01:57.3]}
24. Qxf5 {[%clk 0:01:45.4]} 1-0

[Event "*** Titled Tuesday Blitz"]
[Site "Chess.com"]
[Date "2021.04.27"]
[Round "8"]
[White "Valeron87"]
[Black "Ze-Pequeno"]
[Result "1-0"]
[WhiteElo "2417"]
[BlackElo "2227"]
[TimeControl "180+1"]
[EndTime "11:23:44 PDT"]
[Termination "Valeron87 won by resignation"]

1. e4 {[%clk 0:03:00.9]} 1... c5 {[%clk 0:02:58.5]} 2. Nf3 {[%clk 0:02:55.4]}
2... d6 {[%clk 0:02:58.3]} 3. d4 {[%clk 0:02:54.1]} 3... cxd4 {[%clk 0:02:59.2]}
4. Qxd4 {[%clk 0:02:54.1]} 4... a6 {[%clk 0:02:56]} 5. Be2 {[%clk 0:02:52.1]}
5... Nc6 {[%clk 0:02:55.4]} 6. Qe3 {[%clk 0:02:48.7]} 6... g6 {[%clk 0:02:54.1]}
7. O-O {[%clk 0:02:46.2]} 7... Bg7 {[%clk 0:02:53.5]} 8. h3 {[%clk 0:02:42.8]}
8... Nf6 {[%clk 0:02:52.9]} 9. Rd1 {[%clk 0:02:42]} 9... Qc7 {[%clk 0:02:52]}
10. c4 {[%clk 0:02:41.5]} 10... O-O {[%clk 0:02:50.2]} 11. Nc3 {[%clk
0:02:40.5]} 11... Na5 {[%clk 0:02:18.7]} 12. Nd5 {[%clk 0:02:06]} 12... Nxd5
{[%clk 0:02:12.7]} 13. cxd5 {[%clk 0:02:06.3]} 13... Bd7 {[%clk 0:01:59.8]} 14.
Bd2 {[%clk 0:01:58.1]} 14... Nc4 {[%clk 0:01:43.9]} 15. Rdc1 {[%clk 0:01:19.5]}
1-0

[Event "*** Titled Tuesday Blitz"]
[Site "Chess.com"]
[Date "2021.04.27"]
[Round "8"]
[White "Pantata007"]
[Black "MIJuanReyesRosa"]
[Result "0-1"]
[WhiteElo "2301"]
[BlackElo "2062"]
[TimeControl "180+1"]
[EndTime "11:24:23 PDT"]
[Termination "MIJuanReyesRosa won by resignation"]

1. d4 {[%clk 0:02:52.8]} 1... e6 {[%clk 0:02:58.2]} 2. c4 {[%clk 0:02:52.5]}
2... a6 {[%clk 0:02:57.9]} 3. Nc3 {[%clk 0:02:52.4]} 3... c5 {[%clk 0:02:56.7]}
4. d5 {[%clk 0:02:50.9]} 4... exd5 {[%clk 0:02:56.7]} 5. cxd5 {[%clk 0:02:51.8]}
5... b5 {[%clk 0:02:57]} 6. e4 {[%clk 0:02:52.3]} 6... d6 {[%clk 0:02:56.7]} 7.
Nf3 {[%clk 0:02:52]} 7... Nf6 {[%clk 0:02:55.3]} 8. Bg5 {[%clk 0:02:28]} 8... h6
{[%clk 0:02:46.9]} 9. Bh4 {[%clk 0:02:27.8]} 9... Be7 {[%clk 0:02:42.6]} 10. Bd3
{[%clk 0:02:25]} 10... Nbd7 {[%clk 0:02:37.9]} 11. O-O {[%clk 0:02:23]} 11...
O-O {[%clk 0:02:36.2]} 12. Bg3 {[%clk 0:02:18.4]} 12... Nh5 {[%clk 0:02:31.9]}
13. Re1 {[%clk 0:02:12.1]} 13... Nxg3 {[%clk 0:02:26.1]} 14. hxg3 {[%clk
0:02:13]} 14... Bf6 {[%clk 0:02:23.4]} 15. Rc1 {[%clk 0:02:11.3]} 15... c4
{[%clk 0:02:16.5]} 16. Bb1 {[%clk 0:02:10.6]} 16... Re8 {[%clk 0:02:12.3]} 17.
Nd4 {[%clk 0:02:09.1]} 17... Ne5 {[%clk 0:02:08.6]} 18. a3 {[%clk 0:01:52.7]}
18... Qb6 {[%clk 0:02:03.1]} 19. Nce2 {[%clk 0:01:43.6]} 19... Bg4 {[%clk
0:01:51.3]} 20. Qd2 {[%clk 0:01:34.8]} 20... Nd3 {[%clk 0:01:45.8]} 21. Bxd3
{[%clk 0:01:33.3]} 21... Bxd4 {[%clk 0:01:40.4]} 22. Nxd4 {[%clk 0:01:22.9]}
22... Qxd4 {[%clk 0:01:37.3]} 23. Qf4 {[%clk 0:01:14.8]} 23... cxd3 {[%clk
0:01:30.5]} 0-1

[Event "*** Titled Tuesday Blitz"]
[Site "Chess.com"]
[Date "2021.04.27"]
[Round "8"]
[White "Smile2005"]
[Black "Lenyas66"]
[Result "0-1"]
[WhiteElo "2379"]
[BlackElo "2492"]
[TimeControl "180+1"]
[EndTime "11:24:30 PDT"]
[Termination "Lenyas66 won by resignation"]

1. Nf3 {[%clk 0:02:59]} 1... c5 {[%clk 0:02:59.4]} 2. g3 {[%clk 0:02:58.6]} 2...
Nc6 {[%clk 0:02:58.9]} 3. Bg2 {[%clk 0:02:57.4]} 3... g6 {[%clk 0:02:55.5]} 4.
O-O {[%clk 0:02:56.9]} 4... Bg7 {[%clk 0:02:55.1]} 5. d3 {[%clk 0:02:56.8]} 5...
d5 {[%clk 0:02:53.6]} 6. Nc3 {[%clk 0:02:48.5]} 6... Nf6 {[%clk 0:02:42.1]} 7.
e4 {[%clk 0:02:48.6]} 7... d4 {[%clk 0:02:41.8]} 8. Nb1 {[%clk 0:02:48.8]} 8...
O-O {[%clk 0:02:41.1]} 9. a4 {[%clk 0:02:49.7]} 9... h6 {[%clk 0:02:24.2]} 10.
Na3 {[%clk 0:02:49.4]} 10... Be6 {[%clk 0:02:20.4]} 11. b3 {[%clk 0:02:46.7]}
11... Qc8 {[%clk 0:02:14.9]} 12. Bd2 {[%clk 0:02:45.9]} 12... Bh3 {[%clk
0:02:13.3]} 13. Nc4 {[%clk 0:02:46]} 13... Bxg2 {[%clk 0:02:08.8]} 14. Kxg2
{[%clk 0:02:46.9]} 14... b6 {[%clk 0:02:08.6]} 15. Nh4 {[%clk 0:02:45.6]} 15...
e5 {[%clk 0:01:59.3]} 16. Nf3 {[%clk 0:02:39.7]} 16... Qe6 {[%clk 0:01:58.9]}
17. h3 {[%clk 0:02:38.1]} 17... Nd7 {[%clk 0:01:51.3]} 18. Nh2 {[%clk
0:02:36.1]} 18... a6 {[%clk 0:01:48.7]} 19. Qg4 {[%clk 0:02:32.3]} 19... f5
{[%clk 0:01:44]} 20. exf5 {[%clk 0:02:32.6]} 20... gxf5 {[%clk 0:01:44.2]} 21.
Qe2 {[%clk 0:02:33.1]} 21... b5 {[%clk 0:01:42.5]} 22. axb5 {[%clk 0:02:32.5]}
22... axb5 {[%clk 0:01:42.7]} 23. Na5 {[%clk 0:02:31.2]} 23... Qd5+ {[%clk
0:01:38.4]} 24. f3 {[%clk 0:02:25.4]} 24... Nxa5 {[%clk 0:01:35.6]} 25. Rxa5
{[%clk 0:02:24.9]} 25... Rxa5 {[%clk 0:01:32.5]} 26. Bxa5 {[%clk 0:02:25.8]}
26... Ra8 {[%clk 0:01:24.7]} 27. Bd2 {[%clk 0:02:24.5]} 27... Ra2 {[%clk
0:01:23.8]} 28. Bc1 {[%clk 0:02:24]} 28... Qxb3 {[%clk 0:01:20.7]} 29. Rf2
{[%clk 0:02:21.8]} 29... Qd5 {[%clk 0:01:18.6]} 30. g4 {[%clk 0:02:21.3]} 30...
f4 {[%clk 0:01:11.5]} 31. h4 {[%clk 0:02:20.2]} 31... c4 {[%clk 0:01:09.8]} 32.
Qe4 {[%clk 0:02:18.2]} 32... Qxe4 {[%clk 0:01:08.3]} 33. fxe4 {[%clk 0:02:18.3]}
33... Nc5 {[%clk 0:01:05.9]} 34. dxc4 {[%clk 0:02:14.1]} 34... bxc4 {[%clk
0:01:02.7]} 35. Nf3 {[%clk 0:02:14.2]} 35... Nxe4 {[%clk 0:00:59.4]} 36. Re2
{[%clk 0:02:14.4]} 36... Nc3 {[%clk 0:00:57]} 0-1

[Event "*** Titled Tuesday Blitz"]
[Site "Chess.com"]
[Date "2021.04.27"]
[Round "8"]
[White "Jungle_Jaguar"]
[Black "guillembaches"]
[Result "1-0"]
[WhiteElo "2686"]
[BlackElo "2505"]
[TimeControl "180+1"]
[EndTime "11:24:32 PDT"]
[Termination "Jungle_Jaguar won on time"]

1. e4 {[%clk 0:03:00.9]} 1... c5 {[%clk 0:03:00.1]} 2. Nf3 {[%clk 0:03:00.7]}
2... d6 {[%clk 0:03:00.7]} 3. d4 {[%clk 0:03:01.1]} 3... cxd4 {[%clk 0:03:01.3]}
4. Nxd4 {[%clk 0:03:02]} 4... Nf6 {[%clk 0:03:01.8]} 5. Nc3 {[%clk 0:03:02.6]}
5... Nc6 {[%clk 0:03:02.3]} 6. Bc4 {[%clk 0:02:57.9]} 6... Bd7 {[%clk
0:03:01.3]} 7. O-O {[%clk 0:02:55.1]} 7... g6 {[%clk 0:03:01.4]} 8. Bb3 {[%clk
0:02:55.1]} 8... Bg7 {[%clk 0:02:58.2]} 9. Be3 {[%clk 0:02:53.6]} 9... Ng4
{[%clk 0:02:58.1]} 10. Nxc6 {[%clk 0:02:52.3]} 10... bxc6 {[%clk 0:02:59]} 11.
Bd4 {[%clk 0:02:50.9]} 11... e5 {[%clk 0:02:28.5]} 12. Be3 {[%clk 0:02:49.7]}
12... Qe7 {[%clk 0:02:23.8]} 13. Bd2 {[%clk 0:02:28.7]} 13... Be6 {[%clk
0:02:10.2]} 14. Ba4 {[%clk 0:02:17.9]} 14... Bd7 {[%clk 0:02:00.6]} 15. Bxc6
{[%clk 0:02:14.3]} 15... Nxf2 {[%clk 0:01:51.4]} 16. Bxd7+ {[%clk 0:02:08.6]}
1-0